Cogmind - Beta 13 @@@ ROGUE MODE // 2024.04.30 @ 22:31:38 Player: Gold Spoon Result: Destroyed by DJ-Q23(R) via exploding Nuclear Reactor Performance ------------- Evolutions (0) 0 Regions Visited (1) 200 Robots Destroyed (10) 50 Value Destroyed (227) 227 Prototype IDs (3) 60 Alien Tech Used (0) 0 Bonus (0) 0 TOTAL SCORE: 537 Bonus ------- None Cogmind --------- Core Integrity 0/250 Matter 152/300 Energy 125/125 System Corruption 1% Temperature Cool (0) Movement Hovering (120) Ox1 Location -10/Materials Parts ------- > --- POWER (1) -------- Light Ion Engine > --- PROPULSION (2) --- Hover Unit > --- UTILITY (2) ------ Small Storage Unit > --- WEAPON (2) ------- Light Assault Rifle Light Assault Rifle > --- INVENTORY (8) ---- Ion Engine Hover Unit Hover Unit Hover Unit Improved Heat Sink Medium Storage Unit Grenade Launcher Peak State ------------ > --- POWER ------------ Ion Engine > --- PROPULSION ------- Hover Unit Hover Unit > --- UTILITY ---------- Small Storage Unit Medium Storage Unit > --- WEAPON ----------- Light Assault Rifle Light Assault Rifle > --- INVENTORY -------- Ion Engine Hover Unit Hover Unit Hover Unit Hover Unit Hover Unit Improved Heat Sink Grenade Launcher [Rating: 8] Favorites ----------- Power Ion Engine Engine Ion Engine Propulsion Light Treads Treads Light Treads Hover Unit Hover Unit Utility Small Storage Unit Storage Small Storage Unit Weapon Light Assault Rifle Ballistic Gun Light Assault Rifle Launcher Grenade Launcher Build | -11 -10 ------- Run | Yrd Mat Slots Evolved . | . . Power . | . . Propulsion . | . . Utility . | . . Weapon . | . . Parts Attached 20 | 6 14 Power 3 | 1 2 Engine 3 | 1 2 Core . | . . Reactor . | . . Propulsion 7 | 2 5 Treads 2 | 2 . Leg . | . . Wheel . | . . Hover 5 | . 5 Flight . | . . Utility 3 | 1 2 Device . | . . Storage 3 | 1 2 Processor . | . . Hackware . | . . Protection . | . . Artifact . | . . Weapon 7 | 2 5 Energy Gun . | . . Energy Cannon . | . . Ballistic Gun 6 | 2 4 Ballistic Cannon . | . . Launcher 1 | . 1 Special Weapon . | . . Impact Weapon . | . . Slashing Weapon . | . . Piercing Weapon . | . . Special Melee Weapon . | . . Unidentified Prototypes . | . . Parts Lost 3 | . 3 Power . | . . Propulsion 3 | . 3 Utility . | . . Weapon . | . . Highest Loss Streak 2 | . 2 To Critical Strikes . | . . Average Slot Usage (%) 83 | . 83 Engine 13 | . 13 Treads 16 | . 16 Hover 11 | . 11 Storage 14 | . 14 Ballistic Gun 26 | . 26 Naked Turns . | . . Heaviest Build 17 | 12 17 Greatest Support 40 | 40 40 Greatest Overweight (x) 1 | . 1 Average Overweight (x) . | . . Largest Inventory Capacity 10 | 8 10 Average Capacity 8 | 6 8 Most Carried 10 | 5 10 Average Carried 4 | 1 4 Final Capacity 8 | 8 8 Final Carried 7 | 1 7 Class Distribution -------------------- 100% | Mutant Dominant Class ---------------- Mutant | -10/Materials Resources | -11 -10 ----------- Run | Yrd Mat Matter Collected 355 | 249 106 Remotely . | . . Salvage Created 257 | . 257 Parts 20 | . 20 Haulers Intercepted . | . . Recyclers Shooed . | . . Parts Field Recycled . | . . Retrieved Matter . | . . Parts Self-Destructed . | . . Prevented . | . . Kills | -11 -10 ------- Run | Yrd Mat Combat Hostiles Destroyed 7 | . 7 Guns 5 | . 5 AOE 2 | . 2 Classes Destroyed 4 | . 4 Operator 1 | . 1 Watcher 2 | . 2 Swarmer 3 | . 3 Grunt 4 | . 4 Best Kill Streak 4 | . 4 Combat Bots Only 3 | . 3 Max Kills in Single Turn 1 | . 1 Gunslinging . | . . Exploded 1 | . 1 Melee . | . . Uniques/NPCs Destroyed . | . . Combat | -11 -10 -------- Run | Yrd Mat Hostile Shots Fired 65 | . 65 Missed 26 | . 26 Damage Taken 753 | . 753 Core 257 | . 257 Absorbed by Shields . | . . Regen/Repaired (Parts) 91 | . 91 Core Remaining (%) 100 | 100 . Volleys Fired 45 | . 45 Largest 2 | . 2 Hottest 50 | . 50 Shots Fired 90 | . 90 Gun 87 | . 87 Cannon . | . . Launcher 3 | . 3 Special . | . . Kinetic 87 | . 87 Thermal . | . . Explosive 3 | . 3 Electromagnetic . | . . Robot Hit Streak 11 | . 11 Robot Miss Streak 8 | . 8 Penetration Max . | . . Secondary Targets 2 | . 2 Max Gunslinging Chain 1 | . 1 Shots Hit Robots 49 | . 49 Core Hits 18 | . 18 Critical Kills . | . . Critical Parts Destroyed . | . . Critical Strikes . | . . Melee Attacks . | . . Impact . | . . Slashing . | . . Piercing . | . . Sneak Attacks . | . . Combat Hostiles . | . . Follow-up Attacks . | . . Damage Inflicted 485 | . 485 Guns 400 | . 400 Cannons . | . . Explosions 73 | . 73 Melee . | . . Ramming 12 | . 12 Kinetic 400 | . 400 Thermal . | . . Explosive 73 | . 73 Electromagnetic . | . . Impact . | . . Slashing . | . . Piercing . | . . Highest Corruption 1 | . 1 Average Corruption 1 | . 1 Corruption Purged . | . . Corruption Blocked . | . . Effects 4 | . 4 Matter Fused 1 | . 1 Energy Discharges 2 | . 2 Parts Rejected 1 | . 1 Overload Shots . | . . Overflow Damage . | . . Projectiles . | . . Explosions . | . . Melee . | . . Knockbacks . | . . Impact . | . . Kinetic . | . . Secondary . | . . Self-Inflicted Damage 52 | . 52 Shots 2 | . 2 Rammed 2 | . 2 Targets Rammed 2 | . 2 Kicked . | . . Crushed . | . . Highest Temperature 18 | . 18 Average Temperature 7 | . 7 Received Heat Transfer 186 | . 186 Siege Activations . | . . Robots Corrupted . | . . Combat Hostiles . | . . Parts Fried . | . . Impact Corruptions . | . . Robots Melted . | . . Combat Hostiles . | . . Parts Melted . | . . Heat Transferred . | . . Parts Sabotaged . | . . Parts Stolen . | . . Parts Stripped . | . . Power Chain Reactions . | . . Alert | -11 -10 ------- Run | Yrd Mat Peak Influence 131 | . 131 Initial . | . . Average 47 | . 50 Maximum Alert Level . | . . Low Security (%) 100 | 100 100 Level 1 . | . . Level 2 . | . . Level 3 . | . . Level 4 . | . . Level 5 . | . . High Security . | . . Max Security . | . . Squads Dispatched 1 | . 1 Investigation . | . . Extermination . | . . Reinforcement 1 | . 1 Assault . | . . Garrison . | . . Intercept . | . . Searches Triggered . | . . Construction Impeded . | . . Haulers Reinforced . | . . Active Scanning Responses . | . . Cargo Convoy Interrupts . | . . Stealth | -11 -10 --------- Run | Yrd Mat Distress Signals 1 | . 1 Communications Jammed . | . . Distress Signals . | . . Times Spotted 21 | . 21 Peak Tracking Total 4 | . 4 Tactical Retreats . | . . Traps | -11 -10 ------- Run | Yrd Mat Traps Triggered 2 | . 2 Indirectly . | . . Trap Hack Attempts . | . . Triggered . | . . Disarmed . | . . Reprogrammed . | . . Reused . | . . Traps Extracted . | . . Installed . | . . Triggered . | . . Machines | -11 -10 ---------- Run | Yrd Mat Machines Disabled . | . . Max in Single Turn . | . . Machines Repaired . | . . Machines Dismantled . | . . Machines Sabotaged . | . . Overloaded Fab Kills . | . . Hacking | -11 -10 --------- Run | Yrd Mat Machines Accessed 6 | . 6 Terminals 5 | . 5 Fabricators . | . . Repair Stations 1 | . 1 Recycling Units . | . . Scanalyzers . | . . Garrison Access . | . . Total Hacks 25 | . 25 Successful 13 | . 13 Failed 12 | . 12 Catastrophic 2 | . 2 Database Lockouts . | . . Manual 2 | . 2 Terminals 17 | . 17 Fabricators . | . . Repair Stations 8 | . 8 Recycling Units . | . . Scanalyzers . | . . Garrison Access . | . . Terminal Hacks 7 | . 7 Prototype ID Bank 3 | . 3 Emergency Access Points 1 | . 1 Alert Level 1 | . 1 Patrol Status 1 | . 1 Registered Components 1 | . 1 Fabricator Hacks . | . . Repair Station Hacks 6 | . 6 Scan Component 3 | . 3 Repair 3 | . 3 Recycling Unit Hacks . | . . Scanalyzer . | . . Garrison Access Hacks . | . . Unauthorized Hacks . | . . Terminals . | . . Fabricators . | . . Repair Stations . | . . Recycling Units . | . . Scanalyzers . | . . Garrison Access . | . . Data Cores Recovered . | . . Used . | . . Hacking Detections 6 | . 6 Full Trace Events 3 | . 3 Feedback Events . | . . Feedback Blocked . | . . Robot Schematics Acquired . | . . Robots Built . | . . Authchips . | . . Time . | . . Total Robot Build Rating . | . . Part Schematics Acquired . | . . Parts Built . | . . Authchips . | . . Time . | . . Total Part Build Rating . | . . Parts Repaired 3 | . 3 Time 78 | . 78 Parts Recycled . | . . Recycled Matter . | . . Retrieved Matter . | . . Retrieved Components . | . . Parts Scanalyzed . | . . Part Schematics Acquired . | . . Parts Damaged . | . . Bothacking | -11 -10 ------------ Run | Yrd Mat Used RIF Installer . | . . Robots Hacked . | . . Non-combat . | . . Combat . | . . Robot Hacks Applied . | . . Relay Couplers Released . | . . Fabnet Peak Effective % . | . . Robots Rewired . | . . Allies Hacked . | . . Hacks Repelled . | . . Allies | -11 -10 -------- Run | Yrd Mat Total Allies . | . . Largest Group . | . . Highest-Rated Group . | . . Highest-Rated Ally . | . . Total Orders . | . . Ally Attacks . | . . Total Damage . | . . Kills . | . . Allies Corrupted . | . . Allies Melted . | . . Intel | -11 -10 ------- Run | Yrd Mat Robot Analysis Total . | . . Derelict Logs Recovered . | . . Drone Launches . | . . Drone Recoveries . | . . Exploration | -11 -10 ------------- Run | Yrd Mat Turns Passed 961 | 63 898 Spaces Moved 661 | 39 622 Core 9 | 9 . Treads 317 | 30 287 Legs . | . . Wheels . | . . Hover 335 | . 335 Flight . | . . Fastest Speed 50 | 50 56 Average Speed 107 | 134 105 Slowest Speed 160 | 160 160 Overloaded Moves . | . . Propulsion Burnouts . | . . Robots Hopped . | . . Cave-ins Triggered . | . . Exploration Rate (%) 46 | 3 90 Regions Visited 1 Branch Regions . Pre-discovered Areas . | . . Known Exits Taken . | . . Unknown Exits Taken 1 | 1 . Scrap Searched . | . . Spaces Dug . | . . Terrain Destroyed 14 | . 14 Melee . | . . Projectile . | . . AOE 14 | . 14 Terrain Rammed . | . . Walls Destroyed . | . . Machines Disabled . | . . Actions | -11 -10 --------- Run | Yrd Mat Total 838 | 49 789 Wait 87 | . 87 Move 660 | 38 622 Hop . | . . Pick Up 17 | 5 12 Fast Attach 9 | 2 7 Attach 7 | 4 3 Detach . | . . Swap 4 | . 4 Drop 7 | . 7 Fire 45 | . 45 Melee . | . . Ram 1 | . 1 Kick . | . . Crush 1 | . 1 Escape Stasis . | . . Rewire . | . . Trap . | . . Miscellaneous . | . . Route ------- -11/Scrapyard -10/Materials (discovered 4 exits: [*Mat x2] / [*Min] / [*Sub]) History --------- Turn | Location | Event 3 | -11/Scrapyard | Discovered new exit (range 16) 64 | -11/Scrapyard | Entered Materials 296 | -10/Materials | Discovered new exit (range 9) 312 | -10/Materials | Build established: Mutant 645 | -10/Materials | Discovered new exit (range 13) 701 | -10/Materials | Discovered new exit (range 13) 785 | -10/Materials | Repaired Lgt. Ion Engine 812 | -10/Materials | Repaired Lgt. Assault Rifle 840 | -10/Materials | Repaired Lgt. Assault Rifle 864 | -10/Materials | Derelicts attacked the area 884 | -10/Materials | Discovered new exit (range 16) 962 | -10/Materials | Destroyed by DJ-Q23(R) via exploding Nuclear Reactor Last Messages --------------- ALERT: Derelict incursion detected, rerouting patrols to target area. System corrupted: Matter fused (-6). EXIT=FOUND S-10 Pest destroyed. Hover Unit destroyed. S-10 Pest destroyed. The unstable cave ceiling collapses. W-16 Scout destroyed. Acquired Hover Unit. Acquired 14 matter. 29-0PN(R) triggered Blade Trap. Massive razor-sharp blades shoot up from within the floor. Nuclear Reactor explodes. 29-0PN(R) destroyed. Nuclear Reactor explodes. Hover Unit destroyed. Nuclear Reactor explodes. Hover Unit destroyed. Map ----- +----------------------------------------------------+ | # ## ! # #??????# # # # | | # ## # #??????# """ # < # # | | # + + #??????# """ # # """" # | | + ############ #??????# """ + + """" # | | # #???# # #??????# # # """" # | | # ##+##### # #??????# """ # # # | | # # #""" # #??????# """ # # = # | | # # """ #""" + + ????# """ # # [[!# | | # + """ #""" # # "???# # # [[!# | | # # """ # # # ""??####### # ! [! # | | # # ######## ########## ######## | | # # #??????# a #??????? | | # ##########???## #??????? | | # ##"""""""#??## RR #??????? | | # ##" !"| "#??# ] ####+######??? | | # ##" "#### ]] # #??? | | ]] # #??? | | < & # #??? | | # """ """ #??? | | ###### ### ! # """ """ #??? | | ##############?# ! ## """ """ #??? | | #????????# ## #??? | | #????????# ## ! #??? | | ! #????????## ###########???? | | ########### ####??????????? | | # @ ##?????????? | | + #?????????? | | # k !#?????????? | | ####+#########""T""### !#?????????? | | # #??#"""""#?# !#?????????? | | "T"##### """ #??#######?# ^^ !##?????????? | | """#???# """ R" #??????????# ^####??????????? | | ####???# """ """ #??????????# #?????????????? | | ???????# """ #??????????# #?????????????? | | ???????# """ ! #??????????# #?????????????? | | ???????# = #??????????# #?????????????? | | ???????# #??????????# #?????????????? | | ???????###########??????????# #?????????????? | | ????????????????????????????# #?????????????? | | ????????????????????????????# #?????????????? | | ????????????????????????????# #?????????????? | | ????????????????????????????# #?????????????? | | ????????????????????????????? ??????????????? | | ??????????????????????????????????????????????? | | ??????????????????????????????????????????????? | | ??????????????????????????????????????????????? | | ??????????????????????????????????????????????? | | ??????????????????????????????????????????????? | | ??????????????????????????????????????????????? | | ??????????????????????????????????????????????? | +----------------------------------------------------+ Best States ------------- Heat Dissipation 25 Energy Generation 10 Energy Capacity 250 Matter Stores 300 Matter Capacity 300 Sight Range 16 Terrain Scan Density 10 Evasion (%) 53 Recoil Reduction 2 Item Schematics ----------------- None Robot Schematics ------------------ None Fabricated ------------ Nothing Alien Tech Used ----------------- None Achievements -------------- None Challenges ------------ None Game ------ Seed FlightThunderInverter Manual? 0 Play Time 00:08:14 Cumulative 27.5 hours Start 2024.04.30 @ 22:23:55 End 2024.04.30 @ 22:31:38 Sessions 1 Manual Loads 0 Difficulty Rogue Special Mode None Game No. 45 Rogue 43 Adventurer 2 Explorer 0 Win Type - Total 0 Types 0/0/0/0/0/0/0/0/0 Lore% 28 Gallery% 23 Achievement% 21 Wizard Run 0 Options --------- Layout 1 ASCII 0 Keyboard 0 Movement Mouse Keybinds 0 Fullscreen 1 Font 24/Smallcaps Map View 50x40 Zoom Use 0% Tactical HUD 0 Map Filters NONE Filters NONE Steam 1 RUN: 49d807c1-b639-4f70-9745-f56e26ea3d0f